bitfinex/quotes_BTCUSD_20251004
["timestamp","ask_amount","ask_price","bid_price","bid_amount"]
[1759594447350,1.55477805,121710.0,121700.0,1e-08]
[1759594447555,0.60433853,121700.0,121690.0,0.01327508]
[1759594447764,0.6950718,121700.0,121690.0,0.01327508]
[1759594447968,0.6981318,121700.0,121690.0,0.01327508]
[1759594448175,0.7001618,121700.0,121690.0,0.01327508]
[1759594448985,0.7111618,121700.0,121690.0,0.01327508]
[1759594449402,0.72313737,121700.0,121690.0,0.01427508]
[1759594449804,0.72313737,121700.0,121690.0,0.01468562]
[1759594450124,1.20167313,121700.0,121690.0,0.01468562]
[1759594450308,1.22667313,121700.0,121690.0,1e-08]
[1759594450542,0.74813737,121700.0,121690.0,1e-08]
[1759594450729,1.22667313,121700.0,121690.0,1e-08]
[1759594451748,0.74813737,121700.0,121690.0,1e-08]
[1759594452521,1.25682503,121700.0,121690.0,1e-08]
[1759594452718,0.77828927,121700.0,121690.0,1e-08]
[1759594452920,1.25682503,121700.0,121690.0,1e-08]
[1759594453144,0.77828927,121700.0,121690.0,1e-08]
[1759594453554,0.75328927,121700.0,121690.0,1e-08]
[1759594453781,0.77828927,121700.0,121690.0,1e-08]
[1759594454138,0.75328927,121700.0,121690.0,1e-08]
[1759594454395,0.83968927,121700.0,121690.0,1e-08]
[1759594454594,0.75328927,121700.0,121690.0,1e-08]
[1759594456851,0.7532996,121700.0,121690.0,1e-08]
[1759594464273,1.23183536,121700.0,121690.0,1e-08]
[1759594464470,0.7532996,121700.0,121690.0,1e-08]
[1759594466326,1.2586326,121700.0,121690.0,1e-08]
[1759594468886,1.1586326,121700.0,121690.0,1e-08]
[1759594469082,1.2586326,121700.0,121690.0,1e-08]
[1759594471010,0.7532996,121700.0,121690.0,1e-08]
[1759594471225,1.2586326,121700.0,121690.0,1e-08]
[1759594471581,1.1586326,121700.0,121690.0,1e-08]
[1759594471792,1.2586326,121700.0,121690.0,1e-08]
[1759594475256,1.2586726,121700.0,121690.0,1e-08]
[1759594477438,1.1586726,121700.0,121690.0,1e-08]
[1759594477672,1.2586726,121700.0,121690.0,1e-08]
[1759594478083,1.5012726,121700.0,121690.0,1e-08]
[1759594478242,2.0316056,121700.0,121690.0,1e-08]
[1759594478443,0.29450394,121690.0,121680.0,0.13015089]
[1759594478643,1.13506611,121690.0,121680.0,0.13020027]
[1759594478844,1.66836911,121690.0,121680.0,1e-08]
[1759594479051,0.53451744,121680.0,121670.0,1e-08]
[1759594479254,0.53454446,121660.0,121650.0,0.12293322]
[1759594479461,0.62526363,121660.0,121650.0,0.12544611]
[1759594479674,0.62526363,121660.0,121650.0,0.12862611]
[1759594479884,0.64264968,121660.0,121650.0,0.12342611]
[1759594480159,0.62729363,121660.0,121650.0,0.12342611]
[1759594480374,0.63517196,121660.0,121650.0,0.12342611]
[1759594480589,0.62729363,121660.0,121650.0,0.12342611]
[1759594480778,0.64264584,121660.0,121650.0,0.12342611]
[1759594481265,1.22246493,121660.0,121650.0,0.12342611]
[1759594481474,1.22246493,121660.0,121650.0,0.12544611]
[1759594481475,0.64264584,121660.0,121650.0,0.12544611]
[1759594481685,0.64564584,121660.0,121650.0,0.12742611]
[1759594481899,0.63326363,121660.0,121650.0,0.12742611]
[1759594482116,0.69425743,121660.0,121650.0,0.12742611]
[1759594485616,0.34925743,121660.0,121650.0,0.13262611]
[1759594486058,0.25811173,121660.0,121650.0,0.13344753]
[1759594486264,0.25051462,121660.0,121650.0,0.13344753]
[1759594486455,0.08612206,121660.0,121650.0,0.13344753]
[1759594487008,0.25051462,121660.0,121650.0,0.13344753]
[1759594487453,0.25254462,121660.0,121650.0,0.13026753]
[1759594488688,0.25051462,121660.0,121650.0,0.13026753]
[1759594488879,0.25254462,121660.0,121650.0,0.13026753]
[1759594489290,0.28269652,121660.0,121650.0,0.12824753]
[1759594489483,0.28566652,121660.0,121650.0,0.12824753]
[1759594491774,0.28570652,121660.0,121650.0,0.12824753]
[1759594492045,0.28273652,121660.0,121650.0,0.12824753]
[1759594492248,0.28273652,121660.0,121650.0,0.13026753]
[1759594492468,0.00304,121660.0,121650.0,0.31429421]
[1759594492693,0.00304,121660.0,121650.0,0.29785361]
[1759594496638,0.00304,121660.0,121650.0,0.53977361]
[1759594496845,0.00304,121660.0,121650.0,0.62521361]
[1759594498559,0.00304,121660.0,121650.0,0.52521361]
[1759594498780,0.00296487,121660.0,121650.0,0.52521361]
[1759594499741,0.00296487,121660.0,121650.0,5.74855661]
[1759594499954,0.00296487,121660.0,121650.0,5.82867867]
[1759594500394,0.00296487,121660.0,121650.0,5.83967867]
[1759594500611,4e-05,121660.0,121650.0,5.50031867]
[1759594500828,4e-05,121660.0,121650.0,6.16931867]
[1759594501046,0.06708808,121700.0,121690.0,0.16435204]
[1759594501255,0.06708808,121700.0,121690.0,0.83680204]
[1759594501466,0.06708808,121700.0,121690.0,0.83676204]
[1759594502076,0.06708808,121700.0,121690.0,0.50964204]
[1759594502502,0.06708808,121700.0,121690.0,0.84169797]
[1759594502666,0.00059043,121700.0,121690.0,0.84169797]
[1759594503521,0.00059043,121700.0,121690.0,0.85269797]
[1759594503741,0.00159043,121700.0,121690.0,0.85569797]
[1759594505412,0.00159043,121700.0,121690.0,0.76993797]
[1759594505635,0.00159043,121700.0,121690.0,0.85537797]
[1759594505816,0.00159043,121700.0,121690.0,0.52861797]
[1759594506255,0.00159043,121700.0,121690.0,0.85537797]
[1759594507515,0.00159043,121700.0,121690.0,0.85529797]
[1759594510074,0.00159043,121700.0,121690.0,0.93842003]
[1759594510275,0.00159043,121700.0,121690.0,5.82176303]
[1759594510489,0.00159043,121700.0,121690.0,5.84641925]
[1759594511313,0.00159043,121700.0,121690.0,5.51973925]
[1759594511526,0.00059043,121700.0,121690.0,5.84301925]
[1759594511737,0.00059043,121700.0,121690.0,5.84701925]
[1759594511945,0.00159043,121700.0,121690.0,5.84701925]
[1759594512384,0.00159043,121700.0,121690.0,5.83601925]
[1759594512589,0.00159043,121700.0,121690.0,5.84401925]
[1759594513198,1e-08,121700.0,121690.0,5.54789115]
[1759594513428,1e-08,121700.0,121690.0,6.21569115]
[1759594513631,1e-08,121700.0,121690.0,5.54789115]
[1759594513840,1e-08,121700.0,121690.0,6.20769115]
[1759594514259,1e-08,121700.0,121690.0,6.21869115]
[1759594514671,0.06649765,121740.0,121730.0,0.16429803]
[1759594514955,0.06664544,121740.0,121730.0,0.49248803]
[1759594515154,0.06664544,121740.0,121730.0,0.49562803]
[1759594515779,0.07064544,121740.0,121730.0,0.49562803]
[1759594516001,0.07164544,121740.0,121730.0,0.49562803]
[1759594516436,0.24098102,121740.0,121720.0,0.24970642]
[1759594516650,0.25052009,121730.0,121720.0,0.0854]
[1759594516870,0.25247009,121730.0,121720.0,0.32588]
[1759594517081,0.25247033,121730.0,121720.0,0.24048]
[1759594517511,0.25247033,121730.0,121720.0,0.24044]
[1759594517727,0.25247033,121730.0,121710.0,0.16432442]
[1759594517943,0.25247033,121730.0,121720.0,0.24044]
[1759594518163,0.25247033,121730.0,121720.0,0.24244]
[1759594518672,0.25247033,121730.0,121720.0,0.24044]
[1759594518858,0.25747033,121730.0,121720.0,0.24244]
[1759594520597,0.25747033,121730.0,121720.0,0.2422]
[1759594520985,0.25808592,121730.0,121720.0,0.2422]
[1759594521787,0.25808592,121730.0,121720.0,0.002]
[1759594522038,0.25808592,121730.0,121720.0,0.19736]
[1759594523063,0.17186362,121730.0,121720.0,0.36382153]
[1759594524383,0.17950825,121730.0,121720.0,0.36382153]
[1759594524552,0.17186362,121730.0,121720.0,0.36382153]
[1759594525377,0.01521404,121730.0,121720.0,0.36382153]
[1759594525579,0.00561559,121730.0,121720.0,0.36696153]
[1759594527054,0.16991362,121730.0,121720.0,0.36696153]
[1759594527257,0.17756207,121730.0,121720.0,0.36696153]
[1759594527878,0.16991362,121730.0,121720.0,0.20265]
[1759594528801,0.16991362,121730.0,121720.0,0.36696153]
[1759594529383,0.17758631,121730.0,121720.0,0.36696153]
[1759594537981,0.16991362,121730.0,121720.0,0.36696153]
[1759594538481,0.17758785,121730.0,121720.0,0.36696153]
[1759594539237,0.16991362,121730.0,121720.0,0.36696153]
[1759594540512,0.17206362,121730.0,121720.0,0.002]
[1759594540726,0.17519362,121730.0,121720.0,0.24084]
[1759594540921,0.25831568,121730.0,121720.0,0.002]
[1759594541142,0.26599162,121730.0,121720.0,0.002]
[1759594541346,0.26599162,121730.0,121720.0,0.24084]
[1759594541815,0.29614352,121730.0,121720.0,0.002]
[1759594542049,1.08483411,121730.0,121720.0,0.002]
[1759594542259,0.63614352,121730.0,121720.0,0.002]
[1759594542469,0.87494352,121730.0,121720.0,0.002]
[1759594542677,0.86994352,121730.0,121720.0,0.002]
[1759594543090,0.86994352,121730.0,121690.0,0.08595045]
[1759594543091,0.16433853,121700.0,121690.0,0.08595045]
[1759594543296,0.16433853,121700.0,121690.0,0.30106249]
[1759594543478,0.00215,121700.0,121690.0,0.30106249]
[1759594543678,0.16648853,121700.0,121690.0,0.16704249]
[1759594543883,0.16648853,121700.0,121690.0,0.40576249]
[1759594544472,0.25274059,121700.0,121690.0,0.40354249]
[1759594544839,0.24961059,121700.0,121690.0,0.40354249]
[1759594545035,0.08527206,121700.0,121690.0,0.40568249]
[1759594545250,0.25261059,121700.0,121690.0,0.40568249]
[1759594545641,0.08612206,121700.0,121690.0,0.40568249]
[1759594545905,0.004,121700.0,121690.0,0.40885249]
[1759594546372,0.00615,121700.0,121690.0,0.40568249]
[1759594547040,0.004,121700.0,121690.0,0.40568249]
[1759594547261,0.004,121700.0,121690.0,0.40885249]
[1759594548829,0.004,121700.0,121690.0,0.40865249]
[1759594549069,0.004,121700.0,121690.0,0.49405249]
[1759594552159,0.16833853,121700.0,121690.0,0.49405249]
[1759594552755,0.004,121700.0,121690.0,0.49405249]
[1759594554305,0.004,121700.0,121690.0,0.49377249]
[1759594556109,0.004,121700.0,121690.0,0.17021249]
[1759594556312,0.004,121700.0,121690.0,0.49369249]
[1759594563168,0.004,121700.0,121690.0,0.49333249]
[1759594563743,0.004,121700.0,121690.0,0.83333249]
[1759594566672,0.004,121700.0,121690.0,0.91645455]
[1759594566902,0.004,121700.0,121690.0,5.79979755]
[1759594567686,0.00020523,121710.0,121700.0,0.50433853]
[1759594567907,0.00020523,121710.0,121700.0,0.50756853]
[1759594568121,0.00020523,121710.0,121700.0,0.50955853]
[1759594569053,0.00320523,121710.0,121700.0,0.50955853]
[1759594570111,0.00420523,121710.0,121700.0,0.50955853]
[1759594572556,0.00420523,121710.0,121690.0,0.57673121]
[1759594572557,0.16433853,121700.0,121690.0,0.00055045]
[1759594572778,0.16931853,121700.0,121690.0,0.23787045]
[1759594572969,0.16931853,121700.0,121690.0,0.23807045]
[1759594573671,0.16931853,121700.0,121690.0,0.00055045]
[1759594573867,0.16931853,121700.0,121690.0,0.24003045]
[1759594574712,0.16931853,121700.0,121690.0,0.00255045]
[1759594575136,0.16931853,121700.0,121690.0,0.23999045]
[1759594576059,0.16931853,121700.0,121690.0,0.00255045]
[1759594576261,0.25244059,121700.0,121690.0,0.23999045]
[1759594578987,0.25244059,121700.0,121690.0,0.00255045]
[1759594579244,0.25244059,121700.0,121690.0,0.23979045]
[1759594581109,0.25248059,121700.0,121690.0,0.23979045]
[1759594581671,0.28263249,121700.0,121690.0,0.00255045]
[1759594581881,0.28263249,121700.0,121690.0,0.23967045]
[1759594584970,0.28263249,121700.0,121690.0,0.00255045]
[1759594586433,0.28263249,121700.0,121690.0,0.00055045]
[1759594586830,0.28663249,121700.0,121690.0,0.00055045]
[1759594594816,0.62663249,121700.0,121690.0,0.00055045]
[1759594595189,1.36818674,121700.0,121690.0,0.00055045]
[1759594595972,1.45240081,121700.0,121690.0,0.00055045]
[1759594597634,1.36818674,121700.0,121690.0,0.00055045]
[1759594598926,1.36718674,121700.0,121690.0,0.00055045]
[1759594599151,1.37418674,121700.0,121690.0,0.00155045]
[1759594599355,1.38518674,121700.0,121690.0,0.00155045]
[1759594599782,0.64363249,121700.0,121690.0,0.00155045]
[1759594599977,1.14866674,121700.0,121690.0,0.00155045]
[1759594600218,1.46924081,121700.0,121690.0,0.00155045]
[1759594601087,1.23288081,121700.0,121690.0,0.00155045]
[1759594601290,1.46924081,121700.0,121690.0,0.00155045]
[1759594602076,1.46916081,121700.0,121690.0,0.00155045]
[1759594602926,0.0301519,121680.0,121650.0,0.02293322]
[1759594603153,0.16635256,121660.0,121650.0,0.02342611]
[1759594603371,0.16635256,121660.0,121650.0,0.02545611]
[1759594603831,0.16439256,121660.0,121650.0,0.02870611]
[1759594604261,0.16439256,121660.0,121650.0,0.03170611]
[1759594604474,0.16439256,121660.0,121650.0,0.0357566]
[1759594604706,0.16439256,121660.0,121650.0,0.0327566]
[1759594605143,0.16439256,121660.0,121650.0,0.0387566]
[1759594608907,0.16439256,121660.0,121650.0,0.03957802]
[1759594610706,0.19009186,121660.0,121650.0,0.03227753]
[1759594610925,0.27629392,121660.0,121650.0,0.03024753]
[1759594612179,0.30644582,121660.0,121650.0,0.03024753]
[1759594612810,0.27962652,121660.0,121650.0,0.03227753]
[1759594613226,0.27962652,121660.0,121650.0,0.03024753]
[1759594613427,0.28270652,121660.0,121650.0,0.03024753]
[1759594614046,0.28270652,121660.0,121650.0,0.01739259]
[1759594619946,0.24751462,121660.0,121650.0,0.02257259]
[1759594620586,0.24957462,121660.0,121650.0,0.01940259]
[1759594620747,0.24957462,121660.0,121650.0,0.01739259]
[1759594620961,0.25267462,121660.0,121650.0,0.01739259]
[1759594623358,0.24957462,121660.0,121650.0,0.01940259]
[1759594624170,0.24957462,121660.0,121650.0,0.01739259]
[1759594624395,0.25267462,121660.0,121650.0,0.01739259]
[1759594626033,0.31126496,121660.0,121650.0,0.01739259]
[1759594626911,0.34141686,121660.0,121650.0,0.01739259]
[1759594630284,0.34141686,121660.0,121650.0,0.01439259]
[1759594630699,0.34341686,121660.0,121650.0,0.01439259]
[1759594630904,0.34341686,121660.0,121650.0,0.01139259]
[1759594631580,0.34741686,121660.0,121650.0,0.01139259]
[1759594633213,0.28886652,121660.0,121650.0,0.01139259]
[1759594633639,0.52434652,121660.0,121650.0,0.01139259]
[1759594634616,0.28886652,121660.0,121650.0,0.01139259]
[1759594634822,0.52430652,121660.0,121650.0,0.01139259]
[1759594635996,0.28886652,121660.0,121650.0,0.01139259]
[1759594636396,0.52430652,121660.0,121650.0,0.01139259]
[1759594637617,0.59945517,121660.0,121650.0,0.01139259]
[1759594639093,0.52430652,121660.0,121650.0,0.01139259]
[1759594641067,0.51430652,121660.0,121650.0,0.01139259]
[1759594643506,0.27886652,121660.0,121650.0,0.01139259]
[1759594643712,0.51430652,121660.0,121650.0,0.01139259]
[1759594643951,0.27886652,121660.0,121650.0,0.01139259]
[1759594644161,0.51430652,121660.0,121650.0,0.01139259]
[1759594650155,0.58845517,121660.0,121650.0,0.01139259]
[1759594652324,0.51430652,121660.0,121650.0,0.01139259]
[1759594653819,0.27886652,121660.0,121650.0,0.01139259]
[1759594654032,0.51430652,121660.0,121650.0,0.01139259]
[1759594655151,0.77710652,121660.0,121650.0,0.01139259]
[1759594655973,0.54166652,121660.0,121650.0,0.01139259]
[1759594656185,0.77710652,121660.0,121650.0,0.01139259]
[1759594657995,0.54166652,121660.0,121650.0,0.01139259]
[1759594658321,0.77710652,121660.0,121650.0,0.01139259]
[1759594658941,1.00190313,121660.0,121650.0,0.01139259]
[1759594659409,0.55268794,121660.0,121650.0,0.01139259]
[1759594659629,1.34190313,121660.0,121650.0,0.01139259]
[1759594659844,0.89268794,121660.0,121650.0,0.01139259]
[1759594660083,1.34190313,121660.0,121650.0,0.01139259]
[1759594661141,0.89268794,121660.0,121650.0,0.01139259]
[1759594661351,1.34190313,121660.0,121650.0,0.01139259]
[1759594661764,0.89268794,121660.0,121650.0,0.01139259]
[1759594661942,1.34190313,121660.0,121650.0,0.01139259]
[1759594664644,1.10646313,121660.0,121650.0,0.01139259]
[1759594664849,0.89264794,121660.0,121650.0,0.01139259]
[1759594665578,1.34186313,121660.0,121650.0,0.01139259]
[1759594666826,0.61886652,121660.0,121650.0,0.01139259]
[1759594667148,0.24355462,121660.0,121650.0,0.01660259]
[1759594667532,0.47895462,121660.0,121650.0,0.01660259]
[1759594667772,0.24355462,121660.0,121650.0,0.01660259]
[1759594668003,0.27370652,121660.0,121650.0,0.01660259]
[1759594668217,0.24355462,121660.0,121650.0,0.01660259]
[1759594668445,0.27370652,121660.0,121650.0,0.01660259]
[1759594669535,0.11931396,121660.0,121650.0,0.01660259]
[1759594670232,0.11931396,121660.0,121650.0,0.19744927]
[1759594670450,0.11931396,121660.0,121650.0,0.18100867]
[1759594672401,0.11931396,121660.0,121650.0,0.18593512]
[1759594673227,0.0361919,121660.0,121650.0,0.42133512]
[1759594674325,0.00604,121660.0,121650.0,0.42133512]
[1759594674539,0.11931396,121660.0,121650.0,0.18100867]
[1759594674759,0.11931396,121660.0,121650.0,0.41636867]
[1759594678799,0.11931396,121660.0,121650.0,0.42114698]
[1759594679041,0.12467396,121660.0,121650.0,0.01139259]
[1759594679221,0.11931396,121660.0,121650.0,0.01660259]
[1759594679438,0.11931396,121660.0,121650.0,0.18100867]
[1759594680079,0.00604,121660.0,121650.0,0.18100867]
[1759594680938,0.00604,121660.0,121650.0,0.20567535]
[1759594684765,0.00604,121660.0,121650.0,0.52643535]
[1759594684966,4e-05,121660.0,121650.0,0.52643535]
[1759594685378,0.00104,121660.0,121650.0,0.20567535]
[1759594686269,0.11431396,121660.0,121650.0,0.01660259]
[1759594686483,0.11644396,121660.0,121650.0,0.01348259]
[1759594686688,0.11644396,121660.0,121650.0,0.24880259]
[1759594687118,0.11644396,121660.0,121650.0,0.01348259]
[1759594687349,0.11644396,121660.0,121650.0,0.24880259]
[1759594687586,0.31249382,121660.0,121650.0,0.01139259]
[1759594687804,0.28408652,121660.0,121650.0,0.01139259]
[1759594688104,0.28408652,121660.0,121650.0,0.24671259]
[1759594688731,0.28408652,121660.0,121650.0,0.01139259]
[1759594688969,0.11644396,121660.0,121650.0,0.24671259]
[1759594689346,0.11644396,121660.0,121650.0,0.24874259]
[1759594689495,0.11431396,121660.0,121650.0,0.41618867]
[1759594689701,0.11431396,121660.0,121650.0,0.25178259]
[1759594690351,0.11644396,121660.0,121650.0,0.24874259]
[1759594691314,0.0311919,121660.0,121650.0,0.41618867]
[1759594691777,0.00104,121660.0,121650.0,0.41618867]
[1759594695133,0.00104,121660.0,121650.0,0.75618867]
[1759594696788,0.00104,121660.0,121650.0,5.91397639]
[1759594697821,4e-05,121660.0,121650.0,5.91397639]
[1759594698508,4e-05,121660.0,121650.0,5.99937639]
[1759594698761,4e-05,121660.0,121650.0,5.67865639]
[1759594698993,4e-05,121660.0,121650.0,5.99937639]
[1759594699247,4e-05,121660.0,121650.0,6.00237639]
[1759594699463,4e-05,121660.0,121650.0,6.00537639]
[1759594700595,4e-05,121660.0,121650.0,5.68465639]
[1759594700830,4e-05,121660.0,121650.0,6.00537639]
[1759594702216,4e-05,121660.0,121650.0,5.68465639]
[1759594702457,4e-05,121660.0,121650.0,6.00537639]
[1759594702882,4e-05,121660.0,121650.0,5.91993639]
[1759594703104,4e-05,121660.0,121650.0,6.00537639]
[1759594704776,4e-05,121660.0,121650.0,5.68465639]
[1759594705045,4e-05,121660.0,121650.0,6.00537639]
[1759594706817,4e-05,121660.0,121650.0,5.91989639]
[1759594706992,4e-05,121660.0,121650.0,5.68465639]
[1759594707198,4e-05,121660.0,121650.0,6.00533639]
[1759594707612,4e-05,121660.0,121650.0,5.68465639]
[1759594707812,4e-05,121660.0,121650.0,6.00533639]
[1759594708314,4e-05,121660.0,121650.0,5.68465639]
[1759594708514,4e-05,121660.0,121650.0,6.00533639]
[1759594713139,4e-05,121660.0,121650.0,5.68465639]
[1759594713353,4e-05,121660.0,121650.0,6.00533639]
[1759594715854,4e-05,121660.0,121650.0,5.68465639]
[1759594716067,0.00214,121660.0,121650.0,5.91913433]
[1759594716482,4e-05,121660.0,121650.0,5.92227433]
[1759594717081,4e-05,121660.0,121650.0,5.60163433]
[1759594717306,4e-05,121660.0,121650.0,5.92227433]
[1759594723472,4e-05,121660.0,121650.0,5.60163433]
[1759594723687,4e-05,121660.0,121650.0,5.92227433]
[1759594724615,4e-05,121660.0,121650.0,5.60163433]
[1759594724826,4e-05,121660.0,121650.0,5.92227433]
[1759594725673,4e-05,121660.0,121650.0,5.60163433]
[1759594725883,4e-05,121660.0,121650.0,5.92223433]
[1759594726720,4e-05,121660.0,121650.0,6.00535639]
[1759594727349,0.09664955,121680.0,121670.0,0.16437905]
[1759594727532,0.06649765,121680.0,121670.0,0.40470905]
[1759594727762,0.06708808,121700.0,121690.0,0.16435204]
[1759594727966,0.09723998,121700.0,121690.0,0.40154204]
[1759594728226,0.06708808,121700.0,121690.0,0.40468204]
[1759594728674,0.03074233,121700.0,121690.0,0.40468204]
[1759594729272,0.03274233,121700.0,121690.0,0.40468204]
[1759594729479,0.03674233,121700.0,121690.0,0.40468204]
[1759594729902,0.20108086,121700.0,121690.0,0.40468204]
[1759594730310,0.20108086,121700.0,121690.0,0.49008204]
[1759594731318,0.20108086,121700.0,121690.0,0.16952204]
[1759594731494,0.20108086,121700.0,121690.0,0.40468204]
[1759594731712,0.20108086,121700.0,121690.0,0.49008204]
[1759594732320,0.20108086,121700.0,121690.0,0.40464204]
[1759594732572,0.20108086,121700.0,121690.0,0.16952204]
[1759594732776,0.20108086,121700.0,121690.0,0.49004204]
[1759594733525,0.03674233,121700.0,121690.0,0.49004204]
[1759594733936,0.20108086,121700.0,121690.0,0.49004204]
[1759594735541,0.03674233,121700.0,121690.0,0.49004204]
[1759594735769,0.20108086,121700.0,121690.0,0.16952204]
[1759594736171,0.03674233,121700.0,121690.0,0.49004204]
[1759594736772,0.03674233,121700.0,121690.0,0.49567413]
[1759594739386,0.20108086,121700.0,121690.0,0.49563413]
[1759594740284,0.20108086,121700.0,121690.0,0.17515413]
[1759594740499,0.20626086,121700.0,121690.0,0.49046413]
[1759594740947,0.20108086,121700.0,121690.0,0.49564413]
[1759594742206,0.03674233,121700.0,121690.0,0.49564413]
[1759594742418,0.20108086,121700.0,121690.0,0.49564413]
[1759594744598,0.03674233,121700.0,121690.0,0.49564413]
[1759594745854,0.20108086,121700.0,121690.0,0.49564413]
[1759594746267,0.03674233,121700.0,121690.0,0.49564413]
[1759594746707,0.20108086,121700.0,121690.0,0.49564413]
[1759594746923,0.03674233,121700.0,121690.0,0.49564413]
[1759594748330,0.20108086,121700.0,121690.0,0.49564413]
[1759594748737,0.20108086,121700.0,121690.0,0.17516413]
[1759594748954,0.03674233,121700.0,121690.0,0.49560413]
[1759594749157,0.20108086,121700.0,121690.0,0.49560413]
[1759594751776,0.03674233,121700.0,121690.0,0.49560413]
[1759594754272,0.00659043,121700.0,121690.0,0.49560413]
[1759594755310,0.00659043,121700.0,121690.0,0.5202616]
[1759594755525,0.00459043,121700.0,121690.0,0.5202616]
[1759594755967,0.00359043,121700.0,121690.0,0.5202616]
[1759594756451,0.00559043,121700.0,121690.0,0.5202616]
[1759594756801,0.00359043,121700.0,121690.0,0.5202616]
[1759594757009,0.00059043,121700.0,121690.0,0.5202616]
[1759594757223,0.00059043,121700.0,121690.0,0.5212616]
[1759594759091,0.00059043,121700.0,121690.0,5.9112616]
[1759594760293,0.00059043,121700.0,121690.0,5.4857816]
[1759594760509,0.00059043,121700.0,121690.0,5.5711816]
[1759594761376,0.00059043,121700.0,121690.0,5.2508216]
[1759594761584,0.00059043,121700.0,121690.0,5.5711816]
[1759594762057,0.00059043,121700.0,121690.0,0.5211816]
[1759594762488,0.00059043,121700.0,121690.0,0.2008216]
[1759594762717,0.00059043,121700.0,121690.0,0.5211816]
[1759594766916,0.00059043,121700.0,121690.0,0.5211416]
[1759594767116,0.00059043,121700.0,121690.0,0.4357416]
[1759594767326,0.00059043,121700.0,121690.0,0.5211416]
[1759594769475,0.00059043,121700.0,121690.0,0.2008216]
[1759594769691,0.00059043,121700.0,121690.0,0.5211016]
[1759594770217,0.00272043,121700.0,121690.0,0.5178816]
[1759594770393,0.00059043,121700.0,121690.0,0.5208716]
[1759594771301,0.20036086,121700.0,121690.0,0.0864]
[1759594771729,0.20036086,121700.0,121690.0,0.82128]
[1759594771932,0.20036086,121700.0,121690.0,0.32128]
[1759594772135,0.03602233,121700.0,121690.0,0.32128]
[1759594772527,0.20036086,121700.0,121690.0,0.001]
[1759594772733,0.03602233,121700.0,121690.0,0.23588]
[1759594776588,0.20036086,121700.0,121690.0,0.23588]
[1759594777253,0.03602233,121700.0,121690.0,0.23588]
[1759594778180,0.20036086,121700.0,121690.0,0.23588]
[1759594779486,0.28348292,121700.0,121690.0,0.001]
[1759594779692,0.28348292,121700.0,121690.0,0.23584]
[1759594787493,0.28348292,121700.0,121690.0,0.001]
[1759594787692,0.28348292,121700.0,121690.0,0.2358]
[1759594790082,0.28348292,121700.0,121690.0,0.001]
[1759594790243,0.28348292,121700.0,121690.0,0.2358]
[1759594791080,0.28348292,121700.0,121690.0,0.001]
[1759594791335,0.28348292,121700.0,121690.0,0.2358]
[1759594792384,0.28348292,121700.0,121690.0,0.001]
[1759594792570,0.28348292,121700.0,121690.0,0.2358]
[1759594792799,0.11914439,121700.0,121690.0,0.001]
[1759594793016,0.28348292,121700.0,121690.0,0.2358]
[1759594796551,0.28348292,121700.0,121690.0,0.23576]
[1759594799796,0.28348292,121700.0,121690.0,0.001]
[1759594799967,0.28348292,121700.0,121690.0,0.23572]
[1759594801740,0.11599439,121700.0,121690.0,0.40209204]
[1759594801960,0.11386439,121700.0,121690.0,0.24077]
[1759594802576,0.11386439,121700.0,121690.0,0.23774]
[1759594802577,0.28025292,121700.0,121690.0,0.23774]
[1759594802983,0.28025292,121700.0,121690.0,0.23572]
[1759594803123,0.28335292,121700.0,121690.0,0.23572]
[1759594804758,0.28335292,121700.0,121690.0,0.001]
[1759594805150,0.28335292,121700.0,121690.0,0.23572]
[1759594805809,0.28025292,121700.0,121690.0,0.23774]
[1759594806862,0.11386439,121700.0,121690.0,0.40512204]
[1759594810108,0.11386439,121700.0,121690.0,0.24077]
[1759594810921,0.11386439,121700.0,121690.0,0.40512204]
[1759594811480,0.11591439,121700.0,121690.0,0.40512204]
[1759594812094,0.11386439,121700.0,121690.0,0.40512204]
[1759594812702,0.03074233,121700.0,121690.0,0.40512204]
[1759594815742,0.19508086,121700.0,121690.0,0.40512204]
[1759594816179,0.03074233,121700.0,121690.0,0.40512204]
[1759594817758,0.19508086,121700.0,121690.0,0.40512204]
[1759594818310,0.19508086,121700.0,121690.0,0.00605]
[1759594818528,0.19508086,121700.0,121690.0,0.32605]
[1759594819026,0.19508086,121700.0,121690.0,0.49040204]
[1759594824949,0.19508086,121700.0,121690.0,0.08842]
[1759594825160,0.20023086,121700.0,121690.0,0.23556]
[1759594825376,0.28335292,121700.0,121690.0,0.23556]
[1759594825812,0.28335292,121700.0,121690.0,0.001]
[1759594826019,0.28335292,121700.0,121690.0,0.23556]
[1759594826226,0.32812073,121700.0,121690.0,0.23556]
[1759594826895,0.28335292,121700.0,121690.0,0.23556]
[1759594829455,0.28335292,121700.0,121690.0,0.001]
[1759594831004,0.19450394,121690.0,121680.0,0.23476531]
[1759594831214,0.279606,121690.0,121680.0,0.23476531]
[1759594831449,0.282566,121690.0,121680.0,0.23476531]
[1759594832308,0.287566,121690.0,121680.0,0.23476531]
[1759594832522,0.292566,121690.0,121680.0,0.23476531]
[1759594834554,0.292566,121690.0,121680.0,0.23472531]
[1759594842582,0.289606,121690.0,121680.0,0.23671531]
[1759594847155,0.289606,121690.0,121680.0,0.00219531]
[1759594847313,0.289606,121690.0,121680.0,0.23663531]
[1759594851186,0.292566,121690.0,121680.0,0.23464531]
[1759594857228,0.289606,121690.0,121680.0,0.23663531]
[1759594857436,0.289606,121690.0,121680.0,0.00219531]
[1759594857674,0.289606,121690.0,121680.0,0.09856531]
[1759594857883,0.292566,121690.0,121680.0,0.09856531]
[1759594860160,0.292566,121690.0,121680.0,0.00020531]
[1759594860373,0.91514217,121690.0,121680.0,0.00020531]
[1759594860806,1.38888694,121690.0,121680.0,0.00020531]
[1759594861038,0.9398125,121690.0,121680.0,0.00020531]
[1759594861255,1.38888694,121690.0,121680.0,0.00020531]
[1759594861686,1.3965637,121690.0,121680.0,0.00020531]
[1759594862359,0.9398125,121690.0,121680.0,0.00020531]
[1759594862563,1.38888694,121690.0,121680.0,0.00020531]
[1759594864559,0.9398125,121690.0,121680.0,0.00020531]
[1759594864999,1.38888694,121690.0,121680.0,0.00020531]
[1759594865221,0.9398125,121690.0,121680.0,0.00020531]
[1759594865432,1.38888694,121690.0,121680.0,0.00020531]
[1759594872158,0.19454446,121660.0,121650.0,0.01318828]
[1759594872290,0.27766652,121660.0,121650.0,0.01368117]
[1759594872626,0.28912246,121660.0,121650.0,0.01578117]
[1759594873047,0.27766652,121660.0,121650.0,0.01578117]
[1759594873260,0.27969652,121660.0,121650.0,0.01578117]
[1759594873478,0.27969652,121660.0,121650.0,0.01967117]
[1759594874197,0.27766652,121660.0,121650.0,0.02278117]
[1759594878074,0.27766652,121660.0,121650.0,0.02339725]
[1759594878919,0.27766652,121660.0,121650.0,0.18780333]
[1759594879123,0.16439256,121660.0,121650.0,0.18780333]